[Event "Early-Titled-Tuesday-Blitz-September-12-2023"]
[Site "Chess.com"]
[Date "2023.09.12"]
[Round "5"]
[White "RebecaJimnz"]
[Black "Inepton_Fermion"]
[Result "0-1"]
[WhiteElo "2201"]
[BlackElo "2369"]
[TimeControl "180+1"]
[EndTime "8:54:58 PDT"]
[Termination "Inepton_Fermion won on time"]

1. e4 {[%clk 0:02:57.8]} 1... g6 {[%clk 0:02:51.7]} 2. d4 {[%clk 0:02:57.3]}
2... Bg7 {[%clk 0:02:51.5]} 3. Nf3 {[%clk 0:02:57.2]} 3... d6 {[%clk 0:02:51.3]}
4. Nc3 {[%clk 0:02:56.3]} 4... a6 {[%clk 0:02:51.4]} 5. Be3 {[%clk 0:02:56.6]}
5... b5 {[%clk 0:02:43]} 6. Qd2 {[%clk 0:02:56.7]} 6... Bb7 {[%clk 0:02:42.8]}
7. Bd3 {[%clk 0:02:56.7]} 7... Nd7 {[%clk 0:02:42.9]} 8. O-O {[%clk 0:02:53.6]}
8... c5 {[%clk 0:02:40.8]} 9. dxc5 {[%clk 0:02:44.5]} 9... Nxc5 {[%clk
0:02:40.4]} 10. Bd4 {[%clk 0:02:42.6]} 10... Nf6 {[%clk 0:02:32.8]} 11. Rfe1
{[%clk 0:02:30.1]} 11... Nxd3 {[%clk 0:02:27.1]} 12. Qxd3 {[%clk 0:02:26.2]}
12... O-O {[%clk 0:02:26.5]} 13. Rad1 {[%clk 0:02:25.3]} 13... Qc7 {[%clk
0:02:10.1]} 14. e5 {[%clk 0:02:20.6]} 14... Ne8 {[%clk 0:01:50.6]} 15. exd6
{[%clk 0:02:16.7]} 15... Nxd6 {[%clk 0:01:50.8]} 16. Bxg7 {[%clk 0:02:14.3]}
16... Kxg7 {[%clk 0:01:51.7]} 17. Nd5 {[%clk 0:02:08.1]} 17... Bxd5 {[%clk
0:01:49.4]} 18. Qxd5 {[%clk 0:02:09]} 18... Qxc2 {[%clk 0:00:57.8]} 19. Rxe7
{[%clk 0:01:59.1]} 19... Nf5 {[%clk 0:00:56.8]} 20. Qe5+ {[%clk 0:01:28.2]}
20... Kg8 {[%clk 0:00:50.2]} 21. Red7 {[%clk 0:01:28.1]} 21... Rae8 {[%clk
0:00:42.1]} 22. Qd5 {[%clk 0:00:49.4]} 22... Qxb2 {[%clk 0:00:24.5]} 23. g4
{[%clk 0:00:35.7]} 23... Nh6 {[%clk 0:00:24]} 24. h3 {[%clk 0:00:22.2]} 24...
Kg7 {[%clk 0:00:10.7]} 25. Nd4 {[%clk 0:00:18]} 25... Kg8 {[%clk 0:00:08.7]} 26.
Nc6 {[%clk 0:00:16]} 26... Qf6 {[%clk 0:00:07]} 27. Nd4 {[%clk 0:00:05]} 27...
Qe5 {[%clk 0:00:06.1]} 28. Qb7 {[%clk 0:00:03.3]} 28... Qe4 {[%clk 0:00:04.1]}
29. Qxe4 {[%clk 0:00:01.6]} 29... Rxe4 {[%clk 0:00:05]} 30. Nc6 {[%clk
0:00:01.7]} 30... Rfe8 {[%clk 0:00:04.3]} 31. Ra7 {[%clk 0:00:01.3]} 31... R4e6
{[%clk 0:00:04.1]} 0-1

[Event "Early-Titled-Tuesday-Blitz-September-12-2023"]
[Site "Chess.com"]
[Date "2023.09.12"]
[Round "5"]
[White "UmarovSabir"]
[Black "malakismayil"]
[Result "0-1"]
[WhiteElo "2308"]
[BlackElo "2518"]
[TimeControl "180+1"]
[EndTime "8:54:59 PDT"]
[Termination "malakismayil won on time"]

1. e4 {[%clk 0:00:31.2]} 1... e5 {[%clk 0:02:57.3]} 2. Nf3 {[%clk 0:00:31.6]}
2... Nc6 {[%clk 0:02:49.2]} 3. Bc4 {[%clk 0:00:32.5]} 3... Bc5 {[%clk
0:02:48.1]} 4. b4 {[%clk 0:00:32.3]} 4... Bxb4 {[%clk 0:02:47.2]} 5. c3 {[%clk
0:00:33.2]} 5... Bd6 {[%clk 0:02:28.9]} 6. d4 {[%clk 0:00:34.1]} 6... Nf6 {[%clk
0:02:26.4]} 7. O-O {[%clk 0:00:33.4]} 7... O-O {[%clk 0:02:25.8]} 8. Nbd2 {[%clk
0:00:32.6]} 8... h6 {[%clk 0:02:24.7]} 9. Re1 {[%clk 0:00:32.3]} 9... Re8 {[%clk
0:02:24.3]} 10. a4 {[%clk 0:00:32.4]} 10... b6 {[%clk 0:02:18.4]} 11. Ba2 {[%clk
0:00:31.5]} 11... a5 {[%clk 0:02:15.8]} 12. Nc4 {[%clk 0:00:31.1]} 12... Ba6
{[%clk 0:02:12.1]} 13. Nxd6 {[%clk 0:00:28.9]} 13... cxd6 {[%clk 0:02:12.1]} 14.
dxe5 {[%clk 0:00:20.3]} 14... dxe5 {[%clk 0:02:13]} 15. h3 {[%clk 0:00:19]}
15... Rc8 {[%clk 0:02:10.4]} 16. Rb1 {[%clk 0:00:18.8]} 16... Bb7 {[%clk
0:01:28.8]} 17. Qb3 {[%clk 0:00:18.9]} 17... Re7 {[%clk 0:01:25.2]} 18. Qxb6
{[%clk 0:00:19.1]} 18... Rc7 {[%clk 0:01:25.9]} 19. Ba3 {[%clk 0:00:15.8]} 19...
d6 {[%clk 0:01:22.7]} 20. Red1 {[%clk 0:00:15.3]} 20... Ne8 {[%clk 0:01:23]} 21.
Qe3 {[%clk 0:00:12.6]} 21... Red7 {[%clk 0:01:14.9]} 22. c4 {[%clk 0:00:12.5]}
22... Nf6 {[%clk 0:01:02.7]} 23. c5 {[%clk 0:00:12.1]} 23... dxc5 {[%clk
0:01:02.7]} 24. Rxd7 {[%clk 0:00:12.7]} 24... Rxd7 {[%clk 0:01:03.6]} 25. Bxc5
{[%clk 0:00:13]} 25... Rd3 {[%clk 0:00:57.2]} 26. Qe2 {[%clk 0:00:11.7]} 26...
Ba6 {[%clk 0:00:56.6]} 27. Qc2 {[%clk 0:00:11]} 27... Nxe4 {[%clk 0:00:50.2]}
28. Ba3 {[%clk 0:00:11.1]} 28... Rxa3 {[%clk 0:00:48.3]} 29. Bd5 {[%clk
0:00:07.1]} 29... Nb4 {[%clk 0:00:41.7]} 30. Qxe4 {[%clk 0:00:06.5]} 30... Qxd5
{[%clk 0:00:40.7]} 31. Qf5 {[%clk 0:00:05.2]} 31... Bd3 {[%clk 0:00:37]} 32.
Qc8+ {[%clk 0:00:03.5]} 32... Kh7 {[%clk 0:00:37.7]} 33. Re1 {[%clk 0:00:03.4]}
33... e4 {[%clk 0:00:36.2]} 34. Nh4 {[%clk 0:00:03.2]} 34... Qe6 {[%clk
0:00:32.4]} 35. Qxe6 {[%clk 0:00:02.7]} 35... fxe6 {[%clk 0:00:33.3]} 36. g3
{[%clk 0:00:03.3]} 36... Rxa4 {[%clk 0:00:32.7]} 37. Ng2 {[%clk 0:00:04.2]}
37... Nc2 {[%clk 0:00:32.3]} 38. Nf4 {[%clk 0:00:04.3]} 38... Nxe1 {[%clk
0:00:32.1]} 0-1

[Event "Early-Titled-Tuesday-Blitz-September-12-2023"]
[Site "Chess.com"]
[Date "2023.09.12"]
[Round "5"]
[White "BeautiFullMindChess"]
[Black "Akylbek2021"]
[Result "0-1"]
[WhiteElo "2178"]
[BlackElo "2306"]
[TimeControl "180+1"]
[EndTime "8:54:59 PDT"]
[Termination "Akylbek2021 won on time"]

1. e4 {[%clk 0:03:00.9]} 1... e6 {[%clk 0:02:59.5]} 2. d4 {[%clk 0:03:00.6]}
2... d5 {[%clk 0:03:00.1]} 3. Nd2 {[%clk 0:03:00.9]} 3... c5 {[%clk 0:02:58.7]}
4. exd5 {[%clk 0:02:34.2]} 4... Qxd5 {[%clk 0:02:59.6]} 5. Ngf3 {[%clk
0:02:22.6]} 5... cxd4 {[%clk 0:02:59.4]} 6. Bc4 {[%clk 0:02:22.6]} 6... Qd7
{[%clk 0:02:59.2]} 7. O-O {[%clk 0:02:01.7]} 7... Nc6 {[%clk 0:02:58.8]} 8. Nb3
{[%clk 0:01:56.7]} 8... Nf6 {[%clk 0:02:57.9]} 9. Qe2 {[%clk 0:01:45.7]} 9...
Be7 {[%clk 0:02:28.4]} 10. Re1 {[%clk 0:01:37.5]} 10... O-O {[%clk 0:02:24.4]}
11. Bg5 {[%clk 0:01:06.1]} 11... a6 {[%clk 0:02:11.9]} 12. a4 {[%clk 0:01:04.4]}
12... h6 {[%clk 0:02:03.2]} 13. Bh4 {[%clk 0:01:03.4]} 13... Rd8 {[%clk
0:01:55.6]} 14. Rad1 {[%clk 0:01:02.9]} 14... Qc7 {[%clk 0:01:55.6]} 15. Nbxd4
{[%clk 0:00:48.7]} 15... Nxd4 {[%clk 0:01:53.2]} 16. Nxd4 {[%clk 0:00:49.6]}
16... b6 {[%clk 0:01:20.9]} 17. Bg3 {[%clk 0:00:39.4]} 17... Qc5 {[%clk
0:01:11.6]} 18. c3 {[%clk 0:00:17.4]} 18... Nd5 {[%clk 0:00:49]} 19. Bxd5 {[%clk
0:00:10.5]} 19... Rxd5 {[%clk 0:00:49.9]} 20. b4 {[%clk 0:00:09.7]} 20... Qxc3
{[%clk 0:00:44.4]} 21. Nf3 {[%clk 0:00:07.1]} 21... Bb7 {[%clk 0:00:42.5]} 22.
Rc1 {[%clk 0:00:06.1]} 22... Qxb4 {[%clk 0:00:42.2]} 23. Rc7 {[%clk 0:00:05.3]}
23... Bc8 {[%clk 0:00:14.6]} 24. Ne5 {[%clk 0:00:05.1]} 24... Rb8 {[%clk
0:00:02.4]} 25. h3 {[%clk 0:00:02.5]} 25... a5 {[%clk 0:00:02.5]} 26. Nc6 {[%clk
0:00:02.3]} 26... Qxa4 {[%clk 0:00:02.7]} 27. Nxe7+ {[%clk 0:00:02]} 27... Kh7
{[%clk 0:00:02.7]} 28. Nxd5 {[%clk 0:00:02.2]} 28... exd5 {[%clk 0:00:03]} 29.
Rxf7 {[%clk 0:00:01.9]} 29... Ra8 {[%clk 0:00:02.2]} 0-1

[Event "Early-Titled-Tuesday-Blitz-September-12-2023"]
[Site "Chess.com"]
[Date "2023.09.12"]
[Round "5"]
[White "LeoLV10"]
[Black "kingofthenil"]
[Result "0-1"]
[WhiteElo "2496"]
[BlackElo "2747"]
[TimeControl "180+1"]
[EndTime "8:55:00 PDT"]
[Termination "kingofthenil won by resignation"]

1. e4 {[%clk 0:02:25.5]} 1... Nc6 {[%clk 0:02:59.5]} 2. d4 {[%clk 0:02:24.8]}
2... d5 {[%clk 0:03:00.4]} 3. e5 {[%clk 0:02:24.7]} 3... Bf5 {[%clk 0:02:54.5]}
4. Nf3 {[%clk 0:02:22.1]} 4... e6 {[%clk 0:02:55]} 5. c3 {[%clk 0:02:21.8]} 5...
f6 {[%clk 0:02:55.1]} 6. exf6 {[%clk 0:02:21.1]} 6... Nxf6 {[%clk 0:02:56]} 7.
Bd3 {[%clk 0:02:21.4]} 7... Bd6 {[%clk 0:02:56.2]} 8. O-O {[%clk 0:02:21.2]}
8... O-O {[%clk 0:02:56]} 9. Re1 {[%clk 0:02:21.1]} 9... Ne4 {[%clk 0:02:54.8]}
10. a3 {[%clk 0:02:01.7]} 10... Qf6 {[%clk 0:02:53.6]} 11. Qc2 {[%clk
0:02:00.7]} 11... e5 {[%clk 0:02:39.3]} 12. Be3 {[%clk 0:01:47.8]} 12... Rae8
{[%clk 0:02:31.7]} 13. Nbd2 {[%clk 0:01:44]} 13... Nxd2 {[%clk 0:02:31.9]} 14.
Nxd2 {[%clk 0:01:41.5]} 14... e4 {[%clk 0:00:59.8]} 15. Bf1 {[%clk 0:01:40.6]}
15... Ne7 {[%clk 0:00:59.5]} 16. c4 {[%clk 0:01:34.2]} 16... c6 {[%clk
0:00:59.4]} 17. b4 {[%clk 0:01:32]} 17... Ng6 {[%clk 0:00:57.4]} 18. g3 {[%clk
0:01:30.9]} 18... h5 {[%clk 0:00:55.9]} 19. Qb3 {[%clk 0:01:26.4]} 19... Be6
{[%clk 0:00:55.2]} 20. b5 {[%clk 0:01:21.4]} 20... h4 {[%clk 0:00:54.8]} 21. Bg2
{[%clk 0:00:50.8]} 21... Ne7 {[%clk 0:00:38.5]} 22. c5 {[%clk 0:00:43.5]} 22...
Bb8 {[%clk 0:00:35.8]} 23. Nf1 {[%clk 0:00:43.4]} 23... Nf5 {[%clk 0:00:33.5]}
24. Ra2 {[%clk 0:00:37.1]} 24... Nxd4 {[%clk 0:00:31.3]} 25. Bxd4 {[%clk
0:00:28.4]} 25... Qxd4 {[%clk 0:00:32.2]} 26. bxc6 {[%clk 0:00:29]} 26... bxc6
{[%clk 0:00:30.5]} 27. Ne3 {[%clk 0:00:28.5]} 27... h3 {[%clk 0:00:25.6]} 28.
Bf1 {[%clk 0:00:20.4]} 28... Qxc5 {[%clk 0:00:25.8]} 29. Rc2 {[%clk 0:00:20.3]}
29... Qa5 {[%clk 0:00:20.9]} 30. Qb1 {[%clk 0:00:19.1]} 30... c5 {[%clk
0:00:16.8]} 31. Rec1 {[%clk 0:00:18.6]} 31... c4 {[%clk 0:00:16.6]} 32. Rd1
{[%clk 0:00:18]} 32... Be5 {[%clk 0:00:16]} 33. Rcd2 {[%clk 0:00:17.9]} 33...
Rd8 {[%clk 0:00:14.5]} 34. Qb7 {[%clk 0:00:14.9]} 34... Qc5 {[%clk 0:00:13.1]}
35. a4 {[%clk 0:00:13.8]} 35... c3 {[%clk 0:00:12.6]} 36. Rc2 {[%clk 0:00:13.9]}
36... d4 {[%clk 0:00:13]} 37. Qb1 {[%clk 0:00:12.3]} 37... dxe3 {[%clk
0:00:11.6]} 38. fxe3 {[%clk 0:00:12.1]} 38... Qxe3+ {[%clk 0:00:11.4]} 39. Kh1
{[%clk 0:00:13]} 39... Rxd1 {[%clk 0:00:10.1]} 40. Qc1 {[%clk 0:00:12.9]} 40...
Qf3+ {[%clk 0:00:11]} 41. Kg1 {[%clk 0:00:11.5]} 41... Bd4+ {[%clk 0:00:11.9]}
0-1

[Event "Early-Titled-Tuesday-Blitz-September-12-2023"]
[Site "Chess.com"]
[Date "2023.09.12"]
[Round "5"]
[White "Francisco_Ferrari"]
[Black "Aash20"]
[Result "1-0"]
[WhiteElo "2194"]
[BlackElo "2511"]
[TimeControl "180+1"]
[EndTime "8:55:00 PDT"]
[Termination "Francisco_Ferrari won by resignation"]

1. c4 {[%clk 0:03:00.7]} 1... e5 {[%clk 0:02:57.2]} 2. Nc3 {[%clk 0:02:56.1]}
2... Nf6 {[%clk 0:02:54.5]} 3. Nf3 {[%clk 0:02:55.8]} 3... Nc6 {[%clk
0:02:53.9]} 4. e4 {[%clk 0:02:56.4]} 4... Bc5 {[%clk 0:02:52.7]} 5. Nxe5 {[%clk
0:02:55.5]} 5... Nxe5 {[%clk 0:02:50.9]} 6. d4 {[%clk 0:02:56.1]} 6... Bd6
{[%clk 0:02:50.8]} 7. c5 {[%clk 0:02:55.2]} 7... Bxc5 {[%clk 0:02:49.8]} 8. dxe5
{[%clk 0:02:52.6]} 8... Ng8 {[%clk 0:02:46.9]} 9. Bc4 {[%clk 0:02:46.2]} 9...
Qe7 {[%clk 0:02:45.1]} 10. Nd5 {[%clk 0:02:37.4]} 10... Bb4+ {[%clk 0:02:44]}
11. Kf1 {[%clk 0:02:32.3]} 11... Qc5 {[%clk 0:02:39.2]} 12. Qb3 {[%clk
0:02:16.8]} 12... Ba5 {[%clk 0:02:36.8]} 13. Be3 {[%clk 0:02:13.7]} 13... Qf8
{[%clk 0:02:33.8]} 14. Qa4 {[%clk 0:01:59.8]} 14... Bb6 {[%clk 0:02:29.7]} 15.
Bxb6 {[%clk 0:01:58.2]} 15... cxb6 {[%clk 0:02:28.5]} 16. Nc7+ {[%clk
0:01:58.3]} 16... Kd8 {[%clk 0:02:28.5]} 17. Nxa8 {[%clk 0:01:58.5]} 17... Qc5
{[%clk 0:02:27.3]} 18. Qb5 {[%clk 0:01:46.6]} 18... Ne7 {[%clk 0:02:15.8]} 19.
Qxc5 {[%clk 0:01:41.8]} 19... bxc5 {[%clk 0:02:16.7]} 20. Rd1 {[%clk 0:01:41.2]}
20... Rf8 {[%clk 0:02:13.7]} 21. f4 {[%clk 0:01:32.7]} 21... Nc6 {[%clk
0:02:11.7]} 22. Bd5 {[%clk 0:01:22.2]} 22... Nd4 {[%clk 0:02:08.5]} 23. Kf2
{[%clk 0:01:16.7]} 23... f6 {[%clk 0:02:02.7]} 24. exf6 {[%clk 0:01:14.2]} 24...
Rxf6 {[%clk 0:02:03.6]} 25. g3 {[%clk 0:01:11.9]} 25... g5 {[%clk 0:02:01.8]}
26. f5 {[%clk 0:01:06.6]} 26... d6 {[%clk 0:01:59.8]} 27. Rxd4 {[%clk 0:01:01]}
27... cxd4 {[%clk 0:01:58.9]} 28. Rc1 {[%clk 0:00:53.7]} 28... Bxf5 {[%clk
0:01:57.2]} 29. exf5 {[%clk 0:00:54]} 29... Rxf5+ {[%clk 0:01:57.7]} 30. Bf3
{[%clk 0:00:54.6]} 30... g4 {[%clk 0:01:58.1]} 31. Nc7 {[%clk 0:00:49.9]} 31...
Rxf3+ {[%clk 0:01:51.4]} 32. Ke2 {[%clk 0:00:48.3]} 32... d3+ {[%clk 0:01:50.8]}
33. Kd2 {[%clk 0:00:47.9]} 33... Rf2+ {[%clk 0:01:50.9]} 34. Kxd3 {[%clk
0:00:48.1]} 34... Rxh2 {[%clk 0:01:46.2]} 35. Ne6+ {[%clk 0:00:47.9]} 35... Kd7
{[%clk 0:01:45.2]} 36. Nf4 {[%clk 0:00:45.6]} 36... Rf2 {[%clk 0:01:43.2]} 37.
Ke4 {[%clk 0:00:37.6]} 37... Rxb2 {[%clk 0:01:40.4]} 38. Rh1 {[%clk 0:00:37.1]}
38... Rxa2 {[%clk 0:01:38.7]} 39. Rxh7+ {[%clk 0:00:37.2]} 39... Kc6 {[%clk
0:01:39]} 40. Ne6 {[%clk 0:00:32.4]} 40... Re2+ {[%clk 0:01:30.4]} 41. Kf5
{[%clk 0:00:32.6]} 41... Re5+ {[%clk 0:01:30.5]} 42. Kf6 {[%clk 0:00:31.7]}
42... Re3 {[%clk 0:01:30.6]} 43. Nd8+ {[%clk 0:00:29.5]} 43... Kc5 {[%clk
0:01:29.8]} 44. Nxb7+ {[%clk 0:00:29.3]} 44... Kc6 {[%clk 0:01:28.9]} 45. Nd8+
{[%clk 0:00:29.3]} 45... Kc5 {[%clk 0:01:29.1]} 46. Rxa7 {[%clk 0:00:25.8]}
46... Rxg3 {[%clk 0:01:28.3]} 47. Kf5 {[%clk 0:00:22.7]} 47... Rg1 {[%clk
0:01:27.2]} 48. Ne6+ {[%clk 0:00:22.8]} 48... Kb6 {[%clk 0:01:25.8]} 49. Rg7
{[%clk 0:00:21.3]} 49... g3 {[%clk 0:01:25.5]} 50. Nf4 {[%clk 0:00:21.4]} 50...
Kc5 {[%clk 0:01:22.4]} 51. Rg5 {[%clk 0:00:20.5]} 51... Kc4 {[%clk 0:01:20.3]}
52. Ke4 {[%clk 0:00:19.6]} 52... Re1+ {[%clk 0:01:18]} 53. Kf3 {[%clk
0:00:19.7]} 53... Rf1+ {[%clk 0:01:16.2]} 54. Ke4 {[%clk 0:00:16.2]} 54... Rg1
{[%clk 0:01:12.5]} 55. Rg4 {[%clk 0:00:14]} 55... Kc3 {[%clk 0:01:07.4]} 56.
Ne2+ {[%clk 0:00:14.3]} 56... Kd2 {[%clk 0:01:07.6]} 57. Nxg1 {[%clk 0:00:14.8]}
57... d5+ {[%clk 0:01:07.7]} 58. Kxd5 {[%clk 0:00:15]} 58... Ke3 {[%clk
0:01:08.4]} 59. Rxg3+ {[%clk 0:00:14.8]} 59... Kf2 {[%clk 0:01:08.5]} 60. Rg7
{[%clk 0:00:15.4]} 1-0

[Event "Early-Titled-Tuesday-Blitz-September-12-2023"]
[Site "Chess.com"]
[Date "2023.09.12"]
[Round "5"]
[White "AniJak"]
[Black "AliKa2810"]
[Result "0-1"]
[WhiteElo "2395"]
[BlackElo "2577"]
[TimeControl "180+1"]
[EndTime "8:55:03 PDT"]
[Termination "AliKa2810 won on time"]

1. e4 {[%clk 0:03:00.9]} 1... c5 {[%clk 0:02:56.3]} 2. Nc3 {[%clk 0:02:58.9]}
2... Nc6 {[%clk 0:02:53.1]} 3. g3 {[%clk 0:02:57.6]} 3... g6 {[%clk 0:02:52.2]}
4. Bg2 {[%clk 0:02:56.7]} 4... Bg7 {[%clk 0:02:52.9]} 5. d3 {[%clk 0:02:56.7]}
5... e6 {[%clk 0:02:47.6]} 6. Be3 {[%clk 0:02:55.9]} 6... b6 {[%clk 0:02:45.1]}
7. Qd2 {[%clk 0:02:55.6]} 7... Nge7 {[%clk 0:02:43.1]} 8. Bh6 {[%clk 0:02:54.3]}
8... O-O {[%clk 0:02:30.8]} 9. h4 {[%clk 0:02:53.4]} 9... Nd4 {[%clk 0:02:29.5]}
10. Bxg7 {[%clk 0:02:50.9]} 10... Kxg7 {[%clk 0:02:30]} 11. h5 {[%clk
0:02:51.4]} 11... Ng8 {[%clk 0:02:26.8]} 12. e5 {[%clk 0:02:41.1]} 12... Rb8
{[%clk 0:02:26.1]} 13. Ne4 {[%clk 0:02:36.6]} 13... Bb7 {[%clk 0:02:26]} 14. c3
{[%clk 0:02:26.8]} 14... Bxe4 {[%clk 0:02:21.9]} 15. Bxe4 {[%clk 0:02:24]} 15...
Nc6 {[%clk 0:02:22.5]} 16. f4 {[%clk 0:02:11.6]} 16... d5 {[%clk 0:02:15.9]} 17.
exd6 {[%clk 0:02:08.9]} 17... Qxd6 {[%clk 0:02:15.6]} 18. hxg6 {[%clk
0:02:09.2]} 18... fxg6 {[%clk 0:02:13]} 19. Qg2 {[%clk 0:01:39]} 19... Rbc8
{[%clk 0:02:03.9]} 20. Nf3 {[%clk 0:01:35]} 20... e5 {[%clk 0:02:01.8]} 21. Bxc6
{[%clk 0:01:27.3]} 21... Qxc6 {[%clk 0:02:00.8]} 22. O-O-O {[%clk 0:01:19.5]}
22... exf4 {[%clk 0:01:56.3]} 23. gxf4 {[%clk 0:01:03.3]} 23... Rxf4 {[%clk
0:01:56.1]} 24. Rh3 {[%clk 0:01:03]} 24... Qf6 {[%clk 0:01:30.5]} 25. Ng5 {[%clk
0:00:55.3]} 25... h6 {[%clk 0:01:28.7]} 26. Ne4 {[%clk 0:00:55]} 26... Qe6
{[%clk 0:01:15]} 27. Rg1 {[%clk 0:00:47.5]} 27... Rcf8 {[%clk 0:01:13.4]} 28.
Rg3 {[%clk 0:00:44.5]} 28... Ne7 {[%clk 0:01:13.4]} 29. Qh2 {[%clk 0:00:33.2]}
29... Qxa2 {[%clk 0:00:58]} 30. c4 {[%clk 0:00:27.5]} 30... Rf1+ {[%clk
0:00:53.7]} 31. Kc2 {[%clk 0:00:19.5]} 31... Qb1+ {[%clk 0:00:51]} 32. Kc3
{[%clk 0:00:17.9]} 32... Qc1+ {[%clk 0:00:40.2]} 33. Kb3 {[%clk 0:00:17.2]}
33... Qd1+ {[%clk 0:00:40.1]} 34. Kc3 {[%clk 0:00:16.4]} 34... b5 {[%clk
0:00:28.2]} 35. Rxg6+ {[%clk 0:00:07.1]} 35... Nxg6 {[%clk 0:00:27.8]} 36. Qe5+
{[%clk 0:00:07]} 36... Kh7 {[%clk 0:00:20.6]} 37. Qc7+ {[%clk 0:00:02.6]} 37...
R8f7 {[%clk 0:00:20.4]} 38. Nf6+ {[%clk 0:00:01.7]} 38... Rxf6 {[%clk
0:00:12.7]} 0-1

[Event "Early-Titled-Tuesday-Blitz-September-12-2023"]
[Site "Chess.com"]
[Date "2023.09.12"]
[Round "5"]
[White "Kapitan_Bayan"]
[Black "kuba2006"]
[Result "0-1"]
[WhiteElo "2215"]
[BlackElo "2541"]
[TimeControl "180+1"]
[EndTime "8:55:03 PDT"]
[Termination "kuba2006 won by checkmate"]

1. e4 {[%clk 0:03:00.9]} 1... Nf6 {[%clk 0:02:49]} 2. e5 {[%clk 0:02:59.5]} 2...
Nd5 {[%clk 0:02:34.7]} 3. d4 {[%clk 0:02:58.7]} 3... d6 {[%clk 0:02:33.4]} 4. c4
{[%clk 0:02:58.4]} 4... Nb6 {[%clk 0:02:32.4]} 5. exd6 {[%clk 0:02:58.9]} 5...
exd6 {[%clk 0:02:33.3]} 6. Nc3 {[%clk 0:02:58.4]} 6... Be7 {[%clk 0:02:30.9]} 7.
Bd3 {[%clk 0:02:57.5]} 7... O-O {[%clk 0:02:27.2]} 8. Nge2 {[%clk 0:02:57.3]}
8... Bf6 {[%clk 0:02:26]} 9. O-O {[%clk 0:02:56.6]} 9... Nc6 {[%clk 0:02:25.5]}
10. Be3 {[%clk 0:02:56.3]} 10... d5 {[%clk 0:02:07.6]} 11. c5 {[%clk 0:02:54]}
11... Nc4 {[%clk 0:02:06.5]} 12. Bxc4 {[%clk 0:02:52.2]} 12... dxc4 {[%clk
0:02:07.4]} 13. d5 {[%clk 0:02:47.7]} 13... Nb4 {[%clk 0:01:28.7]} 14. a3 {[%clk
0:02:35.3]} 14... Nd3 {[%clk 0:01:23.4]} 15. b3 {[%clk 0:02:25.9]} 15... Bg4
{[%clk 0:01:13.2]} 16. f3 {[%clk 0:02:19.1]} 16... Re8 {[%clk 0:01:09.7]} 17.
Bd4 {[%clk 0:02:02.2]} 17... Bxd4+ {[%clk 0:00:49.2]} 18. Nxd4 {[%clk
0:02:01.4]} 18... Qf6 {[%clk 0:00:49.3]} 19. Nce2 {[%clk 0:01:49.3]} 19... Bd7
{[%clk 0:00:39.6]} 20. bxc4 {[%clk 0:01:47.1]} 20... Nxc5 {[%clk 0:00:39.5]} 21.
Nc3 {[%clk 0:01:29]} 21... Re3 {[%clk 0:00:31.4]} 22. Ne4 {[%clk 0:00:54.9]}
22... Nxe4 {[%clk 0:00:14.8]} 23. fxe4 {[%clk 0:00:55.8]} 23... Qe5 {[%clk
0:00:15.3]} 24. Rb1 {[%clk 0:00:40]} 24... b6 {[%clk 0:00:14.5]} 25. Nf3 {[%clk
0:00:36.1]} 25... Qxe4 {[%clk 0:00:14.3]} 26. Ng5 {[%clk 0:00:34.3]} 26... Qxc4
{[%clk 0:00:14.3]} 27. Rxf7 {[%clk 0:00:28.3]} 27... Qc5 {[%clk 0:00:07.9]} 28.
Kh1 {[%clk 0:00:19.2]} 28... Rae8 {[%clk 0:00:07.4]} 29. Rxd7 {[%clk 0:00:16.4]}
29... Qb5 {[%clk 0:00:06.9]} 30. h3 {[%clk 0:00:13.1]} 30... Qxd7 {[%clk
0:00:06.6]} 31. Qh5 {[%clk 0:00:10.5]} 31... g6 {[%clk 0:00:05.3]} 32. Qh6
{[%clk 0:00:09.2]} 32... Re1+ {[%clk 0:00:05.4]} 33. Rxe1 {[%clk 0:00:07.3]}
33... Rxe1+ {[%clk 0:00:06.3]} 34. Kh2 {[%clk 0:00:07.7]} 34... Qd6+ {[%clk
0:00:07.2]} 35. g3 {[%clk 0:00:07.6]} 35... Re2+ {[%clk 0:00:08.1]} 36. Kh1
{[%clk 0:00:07.9]} 36... Qxd5+ {[%clk 0:00:08.4]} 37. Kg1 {[%clk 0:00:05.5]}
37... Qg2# {[%clk 0:00:09.3]} 0-1

[Event "Early-Titled-Tuesday-Blitz-September-12-2023"]
[Site "Chess.com"]
[Date "2023.09.12"]
[Round "5"]
[White "ajedrezhoy"]
[Black "MikeSailer"]
[Result "0-1"]
[WhiteElo "2401"]
[BlackElo "2181"]
[TimeControl "180+1"]
[EndTime "8:55:03 PDT"]
[Termination "MikeSailer won on time"]

1. c4 {[%clk 0:03:00.9]} 1... c6 {[%clk 0:02:59.6]} 2. Nf3 {[%clk 0:02:59]} 2...
d5 {[%clk 0:03:00]} 3. e3 {[%clk 0:02:58.3]} 3... Nf6 {[%clk 0:02:59.4]} 4. Nc3
{[%clk 0:02:58.2]} 4... g6 {[%clk 0:02:47.5]} 5. d4 {[%clk 0:02:54.5]} 5... Bg7
{[%clk 0:02:48.1]} 6. Be2 {[%clk 0:02:54.4]} 6... O-O {[%clk 0:02:48.7]} 7. O-O
{[%clk 0:02:54.1]} 7... e6 {[%clk 0:02:38.7]} 8. Bd2 {[%clk 0:02:50.5]} 8... b6
{[%clk 0:02:35.9]} 9. Ne5 {[%clk 0:02:41.8]} 9... Bb7 {[%clk 0:02:34.8]} 10. Bd3
{[%clk 0:02:30.2]} 10... Nbd7 {[%clk 0:02:30.8]} 11. f4 {[%clk 0:02:29.7]} 11...
Rc8 {[%clk 0:02:23.2]} 12. Be1 {[%clk 0:02:27.3]} 12... dxc4 {[%clk 0:02:16.9]}
13. Bxc4 {[%clk 0:02:26]} 13... Nd5 {[%clk 0:02:17]} 14. Qe2 {[%clk 0:02:09.5]}
14... Nxc3 {[%clk 0:02:13.3]} 15. bxc3 {[%clk 0:02:00.2]} 15... c5 {[%clk
0:02:12.4]} 16. g4 {[%clk 0:01:31.8]} 16... cxd4 {[%clk 0:02:09.8]} 17. cxd4
{[%clk 0:01:29.7]} 17... Nxe5 {[%clk 0:02:02.1]} 18. dxe5 {[%clk 0:01:17.5]}
18... Qc7 {[%clk 0:01:55.3]} 19. Bd3 {[%clk 0:01:10.3]} 19... Qc6 {[%clk
0:01:46.3]} 20. e4 {[%clk 0:01:09.3]} 20... Rfd8 {[%clk 0:01:44.6]} 21. Bb4
{[%clk 0:00:57.5]} 21... Bf8 {[%clk 0:01:20.2]} 22. Bxf8 {[%clk 0:00:56.9]}
22... Kxf8 {[%clk 0:01:15.5]} 23. Kf2 {[%clk 0:00:41.6]} 23... Qc5+ {[%clk
0:01:09]} 24. Kg3 {[%clk 0:00:40.5]} 24... g5 {[%clk 0:01:00.4]} 25. Rad1 {[%clk
0:00:33.9]} 25... Rd4 {[%clk 0:00:49]} 26. Rc1 {[%clk 0:00:22.9]} 26... gxf4+
{[%clk 0:00:33.7]} 27. Kxf4 {[%clk 0:00:21.6]} 27... Qxc1+ {[%clk 0:00:23.8]}
28. Rxc1 {[%clk 0:00:20.4]} 28... Rxc1 {[%clk 0:00:24.4]} 29. Kg5 {[%clk
0:00:18.4]} 29... Rc3 {[%clk 0:00:18.8]} 30. Bb5 {[%clk 0:00:16.3]} 30... Rxe4
{[%clk 0:00:16.8]} 31. Qd2 {[%clk 0:00:13]} 31... Rf3 {[%clk 0:00:09.4]} 32.
Qd6+ {[%clk 0:00:08.9]} 32... Kg7 {[%clk 0:00:08.6]} 33. h4 {[%clk 0:00:07.1]}
33... Rff4 {[%clk 0:00:08.4]} 0-1